[Event "1st Turkish League 2017"]
[Site "Konya"]
[Date "2017.07.17"]
[Round "1"]
[White "Nechaeva, Marina"]
[Black "Kazimova, Narmin"]
[Result "1-0"]
[ECO "E43"]
[WhiteElo "2408"]
[BlackElo "2274"]
[Annotator "NA"]
[PlyCount "65"]
[EventType "team-tourn"]
[EventCountry "TUR"]
[SourceTitle "playchess.com"]
[Source "ChessBase"]
[SourceQuality "1"]
[TimeControl "5400+30"]

1. d4 Nf6 2. c4 {[%emt 0:00:00]} e6 {[%emt 0:00:30]} 3. Nc3 {[%emt 0:00:30]} Bb4 {[%emt 0:00:30]} 4. Nf3 {[%emt 0:00:00]} b6 {[%emt 0:01:30]} 5. e3 {[%emt 0:00:00]} Bb7 {[%emt 0:00:30]} 6. Bd3 {[%emt 0:00:00]} Ne4 {[%emt 0:01:30]} 7. Qc2 {[%emt 0:00:00]} f5 {[%emt 0:00:30]} 8. O-O {[%emt 0:00:30]} Bxc3 {[%emt 0:01:30]} 9. bxc3 {[%emt 0:00:00]} O-O {[%emt 0:00:30]} 10. c5 {[%emt 0:00:00] E43: Nimzo-Indian: Rubinstein: 4...b6} (10. Ne1 Nc6 11. f3 Nd6 12. Ba3 Na5 13. c5 Ndc4 14. Qc1 Nxa3 15. Qxa3 Rf6 16. Nc2 Rh6 17. Rf2 Qh4 18. g3 Qh5 {0-1 (50) Bu,X (2705)-Vallejo Pons,F (2711) Doha 2016}) 10... Nc6 {[%emt 0:17:30]} 11. Rb1 {[%emt 0:28:30]} Ne7 {[%emt 0:10:30]} 12. Ne1 $146 {[%emt 0:03:30]} ({Predecessor:} 12. a4 g5 13. Nd2 Nf6 14. e4 fxe4 15. Nxe4 Nxe4 16. Bxe4 Bxe4 17. Qxe4 Nd5 {1-0 (59) Demuth,A (2545)-Aloma Vidal,R (2475) Escaldes 2016}) 12... Ng6 {[%emt 0:10:30]} 13. f3 {[%emt 0:00:30]} Nf6 {[%emt 0:01:30]} 14. c4 {[%emt 0:11:30]} Bc6 {[%emt 0:10:30]} 15. Ba3 {[%emt 0:00:30]} Re8 {[%emt 0:00:30]} 16. Qd2 {[%emt 0:03:30]} bxc5 {[%emt 0:10:30]} 17. Bxc5 {[%emt 0:00:30]} d6 {[%emt 0:00:00]} 18. Ba3 {[%emt 0:06:30]} Bd7 {[%emt 0:00:00]} 19. Be2 {[%emt 0:01:30]} e5 {[%emt 0:01:30]} 20. d5 {[%emt 0:08:30]} f4 {[%emt 0:06:30] [#]} (20... Ne7 $14) 21. e4 $16 {[%emt 0:04:30]} Nh5 {[%emt 0:01:30]} 22. Nd3 {[%emt 0:04:30]} Rf8 {[%emt 0:07:21]} 23. c5 {[%emt 0:00:30]} Rf6 {[%emt 0:00:28]} 24. Qe1 {[%emt 0:00:30]} Nh8 {[%emt 0:03:38]} 25. Qa5 {[%emt 0:14:26]} Rh6 {[%emt 0:10:01]} 26. Rfe1 {[%emt 0:06:32]} Rc8 {[%emt 0:03:28]} 27. c6 {[%emt 0:03:52]} Be8 {[%emt 0:00:30]} 28. Nf2 {[%emt 0:00:00]} Nf6 {[%emt 0:00:15]} 29. Ba6 {[%emt 0:00:00]} Rb8 {[%emt 0:01:12]} 30. Rb7 {[%emt 0:00:19]} Rxb7 {[%emt 0:00:17]} 31. cxb7 {[%emt 0:00:10]} Nd7 {[%emt 0:00:00]} 32. Rc1 {[%emt 0:00:26]} Nb6 {[%emt 0:01:18]} 33. Qc3 {[%emt 0:00:31]} 1-0

[Event "1st Turkish League 2017"]
[Site "Konya"]
[Date "2017.07.17"]
[Round "1"]
[White "Koksal, Ege"]
[Black "Baglan, Esat"]
[Result "0-1"]
[ECO "D47"]
[WhiteElo "2390"]
[BlackElo "2305"]
[Annotator "NA"]
[PlyCount "66"]
[EventType "team-tourn"]
[EventCountry "TUR"]
[SourceTitle "playchess.com"]
[Source "ChessBase"]
[SourceQuality "1"]
[TimeControl "5400+30"]

1. d4 {[%emt 0:00:30]} d5 {[%emt 0:01:00]} 2. c4 {[%emt 0:00:00]} c6 {[%emt 0:00:30]} 3. Nc3 {[%emt 0:00:00]} Nf6 {[%emt 0:00:00]} 4. e3 {[%emt 0:07:30]} e6 {[%emt 0:00:00]} 5. Nf3 {[%emt 0:00:00]} Nbd7 {[%emt 0:00:30]} 6. Bd3 {[%emt 0:00:00]} dxc4 {[%emt 0:00:30]} 7. Bxc4 {[%emt 0:00:30]} b5 {[%emt 0:00:30]} 8. Bd3 {[%emt 0:00:30]} Bd6 {[%emt 0:05:30]} 9. O-O {[%emt 0:08:30]} O-O {[%emt 0:00:30]} 10. b3 {[%emt 0:02:30]} a6 {[%emt 0:10:30]} 11. Bb2 {[%emt 0:07:30]} Bb7 {[%emt 0:27:30]} 12. e4 {[%emt 0:23:30]} e5 {[%emt 0:02:30]} 13. Nxb5 {[%emt 0:13:30]} cxb5 {[%emt 0:00:30]} 14. dxe5 {[%emt 0:00:30]} Nxe5 {[%emt 0:06:30]} 15. Nxe5 {[%emt 0:00:30]} Re8 {[%emt 0:10:30]} 16. Nf3 {[%emt 0:09:30]} Nxe4 {[%emt 0:04:30]} 17. Rc1 {[%emt 0:00:00]} Bf4 {[%emt 0:10:25]} 18. Bxe4 {[%emt 0:12:25]} Bxe4 {[%emt 0:01:21]} 19. Rc5 {[%emt 0:03:14]} Qe7 {[%emt 0:07:58]} 20. Qd4 {[%emt 0:02:13]} f6 {[%emt 0:01:12]} 21. Rh5 {[%emt 0:05:02]} Rad8 {[%emt 0:01:37]} 22. Qc5 {[%emt 0:00:37]} Qb7 {[%emt 0:05:59]} 23. Rh3 {[%emt 0:01:23]} Rd5 {[%emt 0:01:39]} 24. Qc3 {[%emt 0:00:30]} Rd3 {[%emt 0:00:00]} 25. Qb4 {[%emt 0:00:12]} Bd6 {[%emt 0:00:04]} 26. Qe1 {[%emt 0:00:44]} Re7 {[%emt 0:00:34]} 27. Qe2 {[%emt 0:00:58]} Bf5 {[%emt 0:00:25]} 28. Qc2 {[%emt 0:01:02]} Rxf3 {[%emt 0:00:09]} 29. Qd2 {[%emt 0:00:30]} Bxh3 {[%emt 0:00:37]} 30. Qxd6 {[%emt 0:00:10]} Bxg2 {[%emt 0:00:39]} 31. Rc1 {[%emt 0:00:29]} Bh3 {[%emt 0:01:12]} 32. Ba3 {[%emt 0:00:38]} Rd3 {[%emt 0:00:00]} 33. Qc6 {[%emt 0:01:11]} Qxc6 {[%emt 0:00:09]} 0-1

[Event "1st Turkish League 2017"]
[Site "Konya"]
[Date "2017.07.17"]
[Round "1"]
[White "Eric, Jovana"]
[Black "Temel, Burcu Melis"]
[Result "1-0"]
[ECO "B72"]
[WhiteElo "2262"]
[BlackElo "1846"]
[Annotator "NA"]
[PlyCount "61"]
[EventType "team-tourn"]
[EventCountry "TUR"]
[SourceTitle "playchess.com"]
[Source "ChessBase"]
[SourceQuality "1"]
[TimeControl "5400+30"]

1. e4 {[%emt 0:00:30]} c5 {[%emt 0:01:00]} 2. Nf3 {[%emt 0:00:30]} g6 {[%emt 0:00:00]} 3. d4 {[%emt 0:00:00]} cxd4 {[%emt 0:00:00]} 4. Nxd4 {[%emt 0:00:00]} Bg7 {[%emt 0:00:30]} 5. Nc3 {[%emt 0:00:00]} Nc6 {[%emt 0:00:30]} 6. Be3 {[%emt 0:01:00]} Nf6 {[%emt 0:00:30]} 7. Bc4 {[%emt 0:01:30]} d6 {[%emt 0:01:30]} 8. h3 {[%emt 0:01:30]} Bd7 {[%emt 0:03:30]} 9. O-O {[%emt 0:01:30]} O-O {[%emt 0:02:30]} 10. Re1 {[%emt 0:02:30]} Rc8 {[%emt 0:10:30]} 11. Bb3 $11 {[%emt 0:03:30] LiveBook: 74 Games} Ne5 {[%emt 0:03:30]} 12. Qe2 {[%emt 0:04:30]} a6 {[%emt 0:12:30]} 13. f4 {[%emt 0:05:30]} Nc6 {[%emt 0:00:30]} 14. Rad1 {[%emt 0:00:30]} Qa5 {[%emt 0:11:30]} 15. Nf3 {[%emt 0:22:30]} Qh5 {[%emt 0:27:30]} 16. Bf2 {[%emt 0:06:30]} Be6 {[%emt 0:11:34]} 17. Bxe6 {[%emt 0:07:30]} fxe6 {[%emt 0:00:30]} 18. Qc4 {[%emt 0:00:30]} h6 {[%emt 0:03:23]} 19. Qxe6+ {[%emt 0:00:30]} Kh7 {[%emt 0:00:00]} 20. Nd5 {[%emt 0:02:30]} Ng8 {[%emt 0:02:43]} 21. g4 {[%emt 0:05:30]} Qxh3 {[%emt 0:01:11]} 22. Rd3 {[%emt 0:00:30]} Kh8 {[%emt 0:03:15]} 23. Nh4 {[%emt 0:03:30]} Qxh4 {[%emt 0:02:16]} 24. Bxh4 {[%emt 0:00:30]} Nd4 {[%emt 0:00:22]} 25. Qxg6 {[%emt 0:00:30]} Rxc2 {[%emt 0:00:46]} 26. Kh1 {[%emt 0:08:30]} e6 {[%emt 0:00:54]} 27. e5 {[%emt 0:03:32]} dxe5 {[%emt 0:00:16]} 28. Rxd4 {[%emt 0:00:52]} exd4 {[%emt 0:00:47]} 29. Qxc2 {[%emt 0:00:30]} exd5 {[%emt 0:00:30]} 30. f5 {[%emt 0:00:30]} Nf6 {[%emt 0:00:17]} 31. Re7 {[%emt 0:00:55]} 1-0

[Event "1st Turkish League 2017"]
[Site "Konya"]
[Date "2017.07.17"]
[Round "1"]
[White "Keler, Faruk"]
[Black "Sengul, Cengiz"]
[Result "1-0"]
[ECO "C92"]
[WhiteElo "2262"]
[BlackElo "2108"]
[Annotator "NA"]
[PlyCount "108"]
[EventType "team-tourn"]
[EventCountry "TUR"]
[SourceTitle "playchess.com"]
[Source "ChessBase"]
[SourceQuality "1"]
[TimeControl "5400+30"]

1. e4 e5 2. Nf3 {[%emt 0:00:00]} Nc6 {[%emt 0:01:30]} 3. Bb5 {[%emt 0:00:30]} a6 {[%emt 0:00:30]} 4. Ba4 {[%emt 0:00:30]} Nf6 {[%emt 0:00:30]} 5. O-O {[%emt 0:00:00]} Be7 {[%emt 0:00:00]} 6. Re1 {[%emt 0:00:00]} b5 {[%emt 0:00:00]} 7. Bb3 {[%emt 0:00:00]} d6 {[%emt 0:00:00]} 8. c3 {[%emt 0:00:00]} O-O {[%emt 0:00:00]} 9. h3 {[%emt 0:00:30]} Nd7 {[%emt 0:00:00]} 10. d4 {[%emt 0:00:30]} Nb6 {[%emt 0:00:00]} 11. Nbd2 {[%emt 0:00:30]} Bf6 {[%emt 0:00:30]} 12. d5 {[%emt 0:02:30]} Na5 {[%emt 0:09:30]} 13. Bc2 {[%emt 0:00:30]} c5 {[%emt 0:00:00]} 14. b4 {[%emt 0:09:30]} cxb4 {[%emt 0:04:00]} 15. cxb4 {[%emt 0:00:30]} Nac4 {[%emt 0:00:00]} 16. Nxc4 {[%emt 0:00:30]} Nxc4 {[%emt 0:00:00]} 17. Bd3 {[%emt 0:03:30]} Bd7 {[%emt 0:06:30]} 18. Bxc4 {[%emt 0:19:30]} bxc4 {[%emt 0:00:00]} 19. a4 {[%emt 0:06:30]} Qb6 {[%emt 0:10:00]} 20. Bd2 {[%emt 0:05:30]} Rfc8 {[%emt 0:01:30]} 21. Bc3 {[%emt 0:07:30]} Qd8 {[%emt 0:03:30]} 22. Nd2 {[%emt 0:01:30]} Bg5 {[%emt 0:00:30]} 23. Qe2 {[%emt 0:01:30]} Rab8 {[%emt 0:30:30]} 24. Ra3 {[%emt 0:01:30]} Qc7 {[%emt 0:04:30]} 25. Rc1 {[%emt 0:02:30]} f6 {[%emt 0:00:30]} 26. Rc2 {[%emt 0:00:30]} Be8 {[%emt 0:03:30]} 27. Nf3 {[%emt 0:02:30]} Bh6 {[%emt 0:01:30]} 28. Nh4 {[%emt 0:08:30]} g6 {[%emt 0:05:30]} 29. Nf3 {[%emt 0:01:30]} Bd7 {[%emt 0:01:54]} 30. Nh2 {[%emt 0:02:30]} f5 {[%emt 0:01:35]} 31. Bd2 {[%emt 0:00:30]} Bxd2 {[%emt 0:01:25]} 32. Qxd2 {[%emt 0:00:00]} fxe4 {[%emt 0:02:17]} 33. Nf1 {[%emt 0:01:00]} Qb6 {[%emt 0:01:25]} 34. Rb2 {[%emt 0:00:30]} Qd4 {[%emt 0:01:01]} 35. Rc2 {[%emt 0:06:15]} Qxd2 {[%emt 0:04:25]} 36. Nxd2 {[%emt 0:00:52]} Rxb4 {[%emt 0:00:17]} 37. Nxe4 {[%emt 0:03:40]} Bxa4 {[%emt 0:02:20]} 38. Nxd6 {[%emt 0:06:22]} Bxc2 {[%emt 0:06:52]} 39. Nxc8 {[%emt 0:00:05]} Rb1+ {[%emt 0:00:33]} 40. Kh2 {[%emt 0:00:03]} Rb8 {[%emt 0:00:35]} 41. Ne7+ {[%emt 0:00:17]} Kf7 {[%emt 0:00:21]} 42. Nc6 {[%emt 0:00:12]} Rc8 {[%emt 0:01:01]} 43. Rxa6 {[%emt 0:01:13]} Be4 {[%emt 0:00:25]} 44. Nxe5+ {[%emt 0:00:48]} Kg7 {[%emt 0:00:30]} 45. d6 {[%emt 0:00:00]} c3 {[%emt 0:00:00]} 46. d7 {[%emt 0:07:14]} Rd8 {[%emt 0:00:00]} 47. Ra4 {[%emt 0:00:36]} c2 {[%emt 0:00:04]} 48. Rc4 {[%emt 0:00:00]} Bf5 {[%emt 0:02:37]} 49. g4 {[%emt 0:00:00]} Bxd7 {[%emt 0:00:11]} 50. Rxc2 {[%emt 0:00:09]} Be6 {[%emt 0:00:36]} 51. Rc7+ {[%emt 0:00:30]} Kg8 {[%emt 0:00:00]} 52. Re7 {[%emt 0:00:29]} Bd5 {[%emt 0:00:00]} 53. g5 {[%emt 0:00:00]} Rf8 {[%emt 0:01:03]} 54. Ng4 {[%emt 0:00:05]} Rf5 {[%emt 0:00:54]} 1-0

[Event "1st Turkish League 2017"]
[Site "Konya"]
[Date "2017.07.17"]
[Round "1"]
[White "Isik, Alparslan"]
[Black "Kalemler, Kaan"]
[Result "1-0"]
[ECO "A50"]
[WhiteElo "2211"]
[BlackElo "1927"]
[Annotator "NA"]
[PlyCount "119"]
[EventType "team-tourn"]
[EventCountry "TUR"]
[SourceTitle "playchess.com"]
[Source "ChessBase"]
[SourceQuality "1"]
[TimeControl "5400+30"]

1. Nf3 Nf6 2. c4 {[%emt 0:00:00]} b6 {[%emt 0:01:30]} 3. g3 {[%emt 0:00:30]} Bb7 {[%emt 0:00:30]} 4. Bg2 {[%emt 0:00:00]} g6 {[%emt 0:01:30]} 5. d4 {[%emt 0:04:00]} Bg7 $11 {[%emt 0:02:30] LiveBook: 293 Games} 6. Nc3 {[%emt 0:00:30]} d6 {[%emt 0:01:30]} 7. Qc2 {[%emt 0:02:30]} Nbd7 {[%emt 0:02:30]} 8. O-O {[%emt 0:00:30]} O-O {[%emt 0:05:30]} 9. Rd1 {[%emt 0:07:30]} c5 {[%emt 0:05:30]} 10. d5 {[%emt 0:03:30]} a6 {[%emt 0:04:30]} 11. a4 {[%emt 0:04:30]} Qc7 {[%emt 0:10:30]} 12. e4 {[%emt 0:01:30]} Rfb8 {[%emt 0:07:30]} 13. Bf4 {[%emt 0:05:30]} Bc8 {[%emt 0:12:30]} 14. Qe2 {[%emt 0:04:30]} Ne5 {[%emt 0:07:30]} 15. Nxe5 {[%emt 0:03:30]} dxe5 {[%emt 0:00:00]} 16. Bd2 {[%emt 0:06:30]} Bd7 {[%emt 0:03:00]} 17. Bf1 {[%emt 0:15:30]} Ne8 {[%emt 0:06:30]} 18. Bg5 {[%emt 0:03:30]} Qd6 {[%emt 0:03:30]} 19. Qc2 {[%emt 0:02:30]} f6 {[%emt 0:08:14]} 20. Be3 {[%emt 0:01:30]} f5 {[%emt 0:00:36]} 21. Qd2 {[%emt 0:10:30]} Nf6 {[%emt 0:04:41]} 22. f3 {[%emt 0:04:23]} Rf8 {[%emt 0:03:30]} 23. Be2 {[%emt 0:06:15]} f4 {[%emt 0:03:41]} 24. Bf2 {[%emt 0:00:25]} Bh6 {[%emt 0:00:44]} 25. Qd3 {[%emt 0:02:33]} fxg3 {[%emt 0:01:28]} 26. hxg3 {[%emt 0:00:30]} Nh5 {[%emt 0:00:30]} 27. Kg2 {[%emt 0:03:51]} Qf6 {[%emt 0:00:00]} 28. Be3 {[%emt 0:00:27]} Nf4+ {[%emt 0:04:13]} 29. gxf4 {[%emt 0:05:10]} Bxf4 {[%emt 0:00:30]} 30. Bf2 {[%emt 0:00:30]} Qg5+ {[%emt 0:00:30]} 31. Kf1 {[%emt 0:00:30]} Qh5 {[%emt 0:00:30]} 32. Ke1 {[%emt 0:00:51]} Qh1+ {[%emt 0:00:18]} 33. Bf1 {[%emt 0:00:01]} Bg3 {[%emt 0:00:29]} 34. Bxg3 {[%emt 0:02:38]} Rxf3 {[%emt 0:00:01]} 35. Qe2 {[%emt 0:00:24]} Rxg3 {[%emt 0:00:49]} 36. Kd2 {[%emt 0:00:20]} Bg4 {[%emt 0:00:58]} 37. Qf2 {[%emt 0:00:19]} Qh6+ {[%emt 0:00:05]} 38. Kc2 {[%emt 0:01:15]} Bxd1+ {[%emt 0:00:30]} 39. Rxd1 {[%emt 0:00:00]} Rg4 {[%emt 0:00:13]} 40. a5 {[%emt 0:00:20]} Rf8 {[%emt 0:00:40]} 41. Qe1 {[%emt 0:00:45]} Rg1 {[%emt 0:00:41]} 42. Qe2 {[%emt 0:00:27]} Qh4 {[%emt 0:00:31]} 43. Kb3 {[%emt 0:00:57]} Rf2 {[%emt 0:00:30]} 44. Qd3 {[%emt 0:00:00]} Rg3 {[%emt 0:00:25]} 45. Qb1 {[%emt 0:00:30]} bxa5 {[%emt 0:00:30]} 46. Ka4 {[%emt 0:00:34]} Qg4 {[%emt 0:00:36]} 47. Bd3 {[%emt 0:00:34]} Qd7+ {[%emt 0:00:58]} 48. Ka3 {[%emt 0:00:01]} Qb7 {[%emt 0:00:01]} 49. Rf1 {[%emt 0:00:51]} Qb4+ {[%emt 0:00:26]} 50. Ka2 {[%emt 0:00:01]} a4 {[%emt 0:00:33]} 51. Rxf2 {[%emt 0:00:07]} Qb3+ {[%emt 0:00:31]} 52. Ka1 {[%emt 0:00:30]} a3 {[%emt 0:00:00]} 53. Bc2 {[%emt 0:00:46]} axb2+ {[%emt 0:00:29]} 54. Qxb2 {[%emt 0:00:30]} Qxc3 {[%emt 0:00:30]} 55. Qxc3 {[%emt 0:00:30]} Rxc3 {[%emt 0:00:30]} 56. Ka2 {[%emt 0:00:30]} Rxc4 {[%emt 0:00:30]} 57. Bb3 {[%emt 0:00:30]} Rxe4 {[%emt 0:00:17]} 58. d6+ {[%emt 0:01:04]} c4 {[%emt 0:01:11]} 59. dxe7 {[%emt 0:00:35]} Re2+ {[%emt 0:00:00]} 60. Ka3 {[%emt 0:00:21]} 1-0

[Event "1st Turkish League 2017"]
[Site "Konya"]
[Date "2017.07.17"]
[Round "1"]
[White "Sivri, Gorkem"]
[Black "Kitir, Ahmet"]
[Result "1/2-1/2"]
[ECO "D78"]
[WhiteElo "2163"]
[BlackElo "2038"]
[Annotator "NA"]
[PlyCount "175"]
[EventType "team-tourn"]
[EventCountry "TUR"]
[SourceTitle "playchess.com"]
[Source "ChessBase"]
[SourceQuality "1"]
[TimeControl "5400+30"]

1. d4 {[%emt 0:00:30]} d5 {[%emt 0:01:00]} 2. c4 {[%emt 0:00:00]} c6 {[%emt 0:00:30]} 3. Nf3 {[%emt 0:00:00]} Nf6 {[%emt 0:04:30]} 4. Nbd2 {[%emt 0:00:30]} g6 {[%emt 0:08:30]} 5. g3 {[%emt 0:03:30]} Bg7 {[%emt 0:00:30]} 6. Bg2 {[%emt 0:00:00]} O-O {[%emt 0:00:30]} 7. O-O {[%emt 0:00:00]} Nbd7 {[%emt 0:03:30]} 8. b3 {[%emt 0:01:30]} e5 {[%emt 0:09:30]} 9. dxe5 {[%emt 0:04:30]} Ng4 {[%emt 0:03:30]} 10. cxd5 {[%emt 0:00:30]} cxd5 {[%emt 0:02:30]} 11. Bb2 {[%emt 0:03:30]} Ngxe5 {[%emt 0:00:30]} 12. Bd4 {[%emt 0:00:30]} Re8 {[%emt 0:04:30]} 13. Qc2 {[%emt 0:02:30]} Nc6 {[%emt 0:08:30]} 14. Bxg7 {[%emt 0:00:30]} Kxg7 {[%emt 0:00:30]} 15. e3 {[%emt 0:05:30]} Nf6 {[%emt 0:01:30]} 16. Qb2 {[%emt 0:06:30]} Qb6 {[%emt 0:04:30]} 17. Ng5 {[%emt 0:05:30]} h6 {[%emt 0:02:30]} 18. Nh7 {[%emt 0:01:30]} Ne5 {[%emt 0:01:30]} 19. Nxf6 {[%emt 0:01:30]} Qxf6 {[%emt 0:00:00]} 20. Qd4 {[%emt 0:01:30]} Be6 {[%emt 0:02:00]} 21. Rac1 {[%emt 0:02:30]} Nc6 {[%emt 0:05:30]} 22. Qxf6+ {[%emt 0:01:30]} Kxf6 {[%emt 0:00:30]} 23. Nf3 {[%emt 0:00:30]} Rac8 {[%emt 0:05:30]} 24. Rfd1 {[%emt 0:05:30]} Nb4 {[%emt 0:05:30]} 25. Nd4 {[%emt 0:14:30]} Nxa2 {[%emt 0:01:30]} 26. Ra1 {[%emt 0:05:30]} Nc3 {[%emt 0:00:30]} 27. Re1 {[%emt 0:00:30]} a6 {[%emt 0:00:30]} 28. Ra5 {[%emt 0:00:30]} Rc7 {[%emt 0:02:30]} 29. h4 {[%emt 0:02:30]} Rec8 {[%emt 0:01:30]} 30. Raa1 {[%emt 0:02:30]} Ra8 {[%emt 0:07:30]} 31. Bf1 {[%emt 0:01:30]} Ne4 {[%emt 0:01:48]} 32. Ra2 {[%emt 0:04:30]} Rac8 {[%emt 0:00:26]} 33. Raa1 {[%emt 0:00:00]} Nd6 {[%emt 0:01:08]} 34. Bg2 {[%emt 0:04:00]} Rc3 {[%emt 0:01:03]} 35. Ra5 {[%emt 0:03:00]} Rc1 {[%emt 0:02:10]} 36. Kf1 {[%emt 0:03:22]} Ne4 {[%emt 0:01:37]} 37. Ra1 {[%emt 0:00:59]} Rxa1 {[%emt 0:02:15]} 38. Rxa1 {[%emt 0:00:30]} Rc3 {[%emt 0:00:30]} 39. Ke1 {[%emt 0:01:04]} Ke7 {[%emt 0:03:16]} 40. Bf3 {[%emt 0:02:46]} Bc8 {[%emt 0:01:05]} 41. Bd1 {[%emt 0:00:31]} Rc7 {[%emt 0:00:25]} 42. g4 {[%emt 0:01:13]} Nf6 {[%emt 0:01:26]} 43. f3 {[%emt 0:00:27]} Ne8 {[%emt 0:00:31]} 44. Kd2 {[%emt 0:00:54]} b5 {[%emt 0:00:34]} 45. Be2 {[%emt 0:01:44]} Ng7 {[%emt 0:00:21]} 46. b4 {[%emt 0:04:05]} Ne6 {[%emt 0:00:43]} 47. Bd3 {[%emt 0:00:32]} Nxd4 {[%emt 0:00:30]} 48. exd4 {[%emt 0:00:02]} Kd6 {[%emt 0:00:23]} 49. Re1 {[%emt 0:00:58]} Re7 {[%emt 0:01:09]} 50. Rc1 {[%emt 0:00:02]} Bb7 {[%emt 0:00:06]} 51. Rg1 {[%emt 0:01:04]} Bc6 {[%emt 0:00:50]} 52. Ra1 {[%emt 0:00:30]} Bb7 {[%emt 0:00:30]} 53. Rc1 {[%emt 0:00:30]} Rc7 {[%emt 0:00:30]} 54. Re1 {[%emt 0:00:00]} Bc6 {[%emt 0:00:12]} 55. Ra1 {[%emt 0:00:00]} Ra7 {[%emt 0:00:15]} 56. Ra5 {[%emt 0:00:01]} Ra8 {[%emt 0:00:44]} 57. Bc2 {[%emt 0:00:16]} Bb7 {[%emt 0:00:00]} 58. Bd3 {[%emt 0:00:04]} Rf8 {[%emt 0:00:56]} 59. Ra1 {[%emt 0:00:12]} Re8 {[%emt 0:00:21]} 60. Rc1 {[%emt 0:00:07]} Re6 {[%emt 0:00:52]} 61. Ra1 {[%emt 0:01:09]} Kc7 {[%emt 0:00:43]} 62. Ra2 {[%emt 0:01:01]} Kb6 {[%emt 0:00:30]} 63. Ra1 {[%emt 0:00:30]} Bc6 {[%emt 0:00:00]} 64. Bc2 {[%emt 0:02:47]} Re7 {[%emt 0:00:40]} 65. Bd3 {[%emt 0:00:30]} Ra7 {[%emt 0:00:30]} 66. Ra5 {[%emt 0:00:00]} Bd7 {[%emt 0:00:08]} 67. Bc2 {[%emt 0:00:00]} f5 {[%emt 0:00:58]} 68. g5 {[%emt 0:03:49]} hxg5 {[%emt 0:01:10]} 69. hxg5 {[%emt 0:00:02]} Ra8 {[%emt 0:00:34]} 70. Bb3 {[%emt 0:00:17]} Bc6 {[%emt 0:00:30]} 71. Ra1 {[%emt 0:00:34]} a5 {[%emt 0:00:36]} 72. bxa5+ {[%emt 0:00:03]} Rxa5 {[%emt 0:00:00]} 73. Re1 {[%emt 0:00:23]} Ra3 {[%emt 0:01:31]} 74. Kc3 {[%emt 0:02:41]} Ka5 {[%emt 0:01:04]} 75. Re6 {[%emt 0:00:30]} b4+ {[%emt 0:00:00]} 76. Kb2 {[%emt 0:00:00]} Bb5 {[%emt 0:00:51]} 77. Bxd5 {[%emt 0:00:37]} Rd3 {[%emt 0:00:13]} 78. Rxg6 {[%emt 0:00:51]} Rd2+ {[%emt 0:00:37]} 79. Kc1 {[%emt 0:00:08]} Rxd4 {[%emt 0:00:00]} 80. Be6 {[%emt 0:01:49]} f4 {[%emt 0:00:36]} 81. Rf6 {[%emt 0:00:36]} Ba4 {[%emt 0:01:04]} 82. Rf5+ {[%emt 0:00:43]} Kb6 {[%emt 0:00:13]} 83. Rd5 {[%emt 0:00:03]} Rxd5 {[%emt 0:00:38]} 84. Bxd5 {[%emt 0:00:30]} Be8 {[%emt 0:00:12]} 85. Be4 {[%emt 0:00:26]} Bf7 {[%emt 0:00:12]} 86. Bh7 {[%emt 0:00:35]} Be6 {[%emt 0:00:24]} 87. Be4 {[%emt 0:00:03]} Kc5 {[%emt 0:00:13]} 88. Kb2 {[%emt 0:01:08]} 1/2-1/2

[Event "1st Turkish League 2017"]
[Site "Konya"]
[Date "2017.07.17"]
[Round "1"]
[White "Ersahin, Bulent"]
[Black "Gulbas, Cemil"]
[Result "0-1"]
[ECO "A07"]
[WhiteElo "2145"]
[BlackElo "2366"]
[Annotator "NA"]
[PlyCount "86"]
[EventType "team-tourn"]
[EventCountry "TUR"]
[SourceTitle "playchess.com"]
[Source "ChessBase"]
[SourceQuality "1"]
[TimeControl "5400+30"]

1. Nf3 {[%emt 0:00:30]} d5 {[%emt 0:01:00]} 2. g3 {[%emt 0:00:30]} Nf6 {[%emt 0:00:30]} 3. Bg2 {[%emt 0:00:30]} c6 {[%emt 0:00:00]} 4. O-O {[%emt 0:00:00]} Bg4 {[%emt 0:02:00] LiveBook: 3602 Games} 5. h3 {[%emt 0:01:00]} Bh5 {[%emt 0:02:30]} 6. b3 {[%emt 0:04:30] A07: Réti Opening: New York and Capablanca Systems} (6. d3 Nbd7 7. c4 dxc4 8. dxc4 e6 9. Nc3 Be7 10. Be3 Qc7 11. Qc1 O-O 12. Rd1 Rfd8 13. b3 h6 14. Qb2 Bxf3 15. Bxf3 {0-1 (72) Melkumyan,H (2613)-Tomashevsky,E (2696) Minsk 2017}) 6... Nbd7 {[%emt 0:01:30]} 7. Bb2 {[%emt 0:00:30]} Qc7 {[%emt 0:00:30]} 8. c4 {[%emt 0:04:30]} e6 $146 {[%emt 0:11:30]} ({Predecessor:} 8... e5 9. cxd5 Nxd5 10. d3 Be7 11. Nc3 Nxc3 12. Bxc3 Bf6 13. Rc1 O-O 14. Rc2 Rfe8 15. Qa1 Bg6 16. Nd2 Nc5 17. Bb2 Ne6 18. Ne4 Bxe4 19. Bxe4 Nd4 20. Bxd4 {½-½ (20) Pak,R (2131)-Bruemmer,F (2171) Germany 2011}) 9. cxd5 {[%emt 0:02:30]} exd5 {[%emt 0:10:30]} 10. Nc3 {[%emt 0:04:30]} Bc5 {[%emt 0:02:30]} 11. Na4 {[%emt 0:08:30]} Be7 {[%emt 0:03:30]} 12. Rc1 {[%emt 0:02:30]} O-O {[%emt 0:07:30]} 13. d3 {[%emt 0:07:30]} Bxf3 {[%emt 0:19:30]} 14. Bxf3 {[%emt 0:01:30]} h5 {[%emt 0:03:30]} 15. h4 {[%emt 0:05:30]} Ne5 {[%emt 0:06:30]} 16. e3 {[%emt 0:11:30]} g6 {[%emt 0:08:41]} 17. Nc5 {[%emt 0:04:30]} Nxf3+ {[%emt 0:01:43]} 18. Qxf3 {[%emt 0:00:30]} Ng4 $11 {[%emt 0:02:15]} 19. Rfe1 {[%emt 0:06:30]} Rad8 {[%emt 0:03:10]} 20. b4 {[%emt 0:05:30]} b6 {[%emt 0:06:10]} 21. Na6 {[%emt 0:01:30]} Qb7 {[%emt 0:01:14]} 22. b5 {[%emt 0:00:30]} c5 {[%emt 0:00:00]} 23. d4 {[%emt 0:03:30]} c4 {[%emt 0:03:39]} 24. Rxc4 {[%emt 0:00:30]} Bd6 {[%emt 0:01:18]} 25. Rc6 {[%emt 0:01:30]} Qe7 {[%emt 0:01:03]} 26. Qxd5 {[%emt 0:03:00]} Nxf2 {[%emt 0:00:17]} 27. Qf3 {[%emt 0:02:29]} Ne4 {[%emt 0:00:33]} 28. Re2 {[%emt 0:08:44]} Bxg3 {[%emt 0:00:43]} 29. Rg2 {[%emt 0:00:29]} Qxh4 {[%emt 0:00:00]} 30. Nb4 {[%emt 0:02:48]} Bd6 {[%emt 0:00:09]} 31. Nd3 {[%emt 0:01:06]} Ng5 {[%emt 0:00:55]} 32. Qe2 {[%emt 0:01:23]} Rfe8 {[%emt 0:00:21]} 33. Nf2 {[%emt 0:01:07]} Bg3 {[%emt 0:00:24]} 34. Nd3 {[%emt 0:00:48]} Rd5 {[%emt 0:00:13]} 35. Ne5 {[%emt 0:00:53]} Bxe5 {[%emt 0:01:56]} 36. dxe5 {[%emt 0:00:11]} Ne6 {[%emt 0:00:03]} 37. a4 {[%emt 0:03:33]} Red8 {[%emt 0:00:22]} 38. Rd6 {[%emt 0:00:21]} R8xd6 {[%emt 0:00:56]} 39. exd6 {[%emt 0:00:06]} Qxa4 {[%emt 0:00:05]} 40. Rf2 {[%emt 0:02:22]} Qd1+ {[%emt 0:00:30]} 41. Qxd1 {[%emt 0:00:30]} Rxd1+ {[%emt 0:00:30]} 42. Kg2 {[%emt 0:00:00]} Rxd6 {[%emt 0:00:00]} 43. Rc2 {[%emt 0:00:00]} Kh7 {[%emt 0:00:32]} 0-1